Cogmind - Beta 17 @@@ ROGUE MODE // 2026.08.14 @ 16:56:11 Player: Marc Result: Destroyed by S-43 Plague with Heavy Machine Gun Performance ------------- Evolutions (7) 3500 Regions Visited (13) 2600 Robots Destroyed (23) 115 Value Destroyed (695) 695 Prototype IDs (9) 180 Alien Tech Used (0) 0 Bonus (1110) 1110 TOTAL SCORE: 8200 Bonus ------- Follower Combat Kills 110 Entered DSFs 1000 Cogmind --------- Core Integrity 0/1300 Matter 72/300 Energy 34/100 System Corruption 4% Temperature Cool (0) Movement Core (200) Ox3 Location -3/Quarantine Parts ------- > --- POWER (3) -------- (None) > --- PROPULSION (6) --- (None) > --- UTILITY (10) ----- Experimental Thermal Generator Experimental Coolant Injector Advanced Terrain Scan Processor Advanced Hacking Suite > --- WEAPON (2) ------- (None) > --- INVENTORY (5) ---- Improved Core Shielding Advanced Shield Generator Advanced Datajack Peak State ------------ > --- POWER ------------ Micro Nuclear Core Neutrino Core > --- PROPULSION ------- Field Propulsion Drive Nuclear Pulse Array Impulse Thruster Impulse Thruster Impulse Thruster > --- UTILITY ---------- Improved Terrain Scanner Advanced Terrain Scan Processor Improved Transmission Jammer Improved Propulsion Shielding Advanced Force Field System Shield > --- WEAPON ----------- Centrium Greatsword > --- INVENTORY -------- Compact Wheel Compact Wheel Improved Core Shielding Advanced Shield Generator Advanced Remote Shield [Rating: 94] Favorites ----------- Power Light Nuclear Core Engine Ion Engine Power Core Light Nuclear Core Reactor Light Particle Reactor Propulsion Aerolev Unit Treads Light Treads Leg Thunder Leg Hover Unit Aerolev Unit Flight Unit Impulse Thruster Utility Sensor Array Device Sensor Array Storage Medium Storage Unit Processor Signal Interpreter Hackware System Shield Protection Improved Propulsion Shielding Weapon Mini Grenade Launcher Energy Gun EM Pulse Gun Energy Cannon Compact HERF Cannon Ballistic Gun Light Assault Rifle Launcher Mini Grenade Launcher Impact Weapon Shock Maul Slashing Weapon Centrium Greatsword Piercing Weapon Force Lance Special Melee Weapon Advanced Datajack Build | -11 -10 -9 -9 -8 -7 -7 -6 -6 -5 -4 -4 -3 -3 ------- Run | Yrd Mat Mat Min Mat Fac DSF Fac Ext Fac Fac DSF Res Qua Slots Evolved 14 | . . 2 . 2 2 . 2 . 2 2 . 2 . Power 2 | . . . . . . . 1 . . . . 1 . Propulsion 4 | . . 1 . 1 1 . . . 1 . . . . Utility 8 | . . 1 . 1 1 . 1 . 1 2 . 1 . Weapon . | . . . . . . . . . . . . . . Parts Attached 86 | 2 7 11 2 3 2 . 11 1 15 3 7 17 5 Power 14 | . 1 2 . 1 . . 4 1 3 . . 2 . Engine 2 | . . 1 . . . . . 1 . . . . . Core 9 | . 1 1 . 1 . . 3 . 3 . . . . Reactor 3 | . . . . . . . 1 . . . . 2 . Propulsion 29 | 2 3 4 . 1 1 . 1 . 5 1 7 3 1 Treads 3 | 2 1 . . . . . . . . . . . . Leg 1 | . . . . . . . . . 1 . . . . Wheel . | . . . . . . . . . . . . . . Hover 9 | . . 3 . 1 1 . 1 . 2 . . 1 . Flight 16 | . 2 1 . . . . . . 2 1 7 2 1 Utility 30 | . 2 2 2 1 1 . 3 . 6 2 . 10 1 Device 18 | . 1 . 1 1 . . 1 . 4 1 . 8 1 Storage 2 | . . 1 1 . . . . . . . . . . Processor 4 | . 1 1 . . 1 . . . 1 . . . . Hackware 4 | . . . . . . . 2 . 1 . . 1 . Protection 2 | . . . . . . . . . . 1 . 1 . Artifact . | . . . . . . . . . . . . . . Weapon 13 | . 1 3 . . . . 3 . 1 . . 2 3 Energy Gun 4 | . . 2 . . . . 1 . 1 . . . . Energy Cannon 2 | . . . . . . . . . . . . . 2 Ballistic Gun 1 | . 1 . . . . . . . . . . . . Ballistic Cannon . | . . . . . . . . . . . . . . Launcher 1 | . . 1 . . . . . . . . . . . Special Weapon . | . . . . . . . . . . . . . . Impact Weapon 1 | . . . . . . . 1 . . . . . . Slashing Weapon 1 | . . . . . . . . . . . . 1 . Piercing Weapon 1 | . . . . . . . . . . . . . 1 Special Melee Weapon 2 | . . . . . . . 1 . . . . 1 . Unidentified Prototypes 9 | . . 2 . . . . 2 . . . . 5 . Parts Lost 44 | . . 2 . . . 2 . 7 9 . 4 7 13 Power 7 | . . 1 . . . . . 1 1 . 1 1 2 Propulsion 18 | . . . . . . 1 . 4 3 . 2 4 4 Utility 10 | . . . . . . . . . 3 . 1 2 4 Weapon 9 | . . 1 . . . 1 . 2 2 . . . 3 Highest Loss Streak 9 | . . 1 . . . 2 . 5 6 . 4 3 9 To Critical Strikes . | . . . . . . . . . . . . . . Average Backups 4 | 6 3 4 6 5 5 4 5 7 2 3 4 3 4 Power 1 | 1 1 1 2 2 2 2 1 2 1 2 1 . . Propulsion . | 4 . . 3 2 1 1 . . . 1 2 . . Utility 1 | . . 1 1 1 1 1 2 3 . . . 2 3 Weapon . | 1 1 . . . . . 1 1 . . . . . Tool/Special . | . . . . . . . . . . . . . . Unused Backups 7 | . 2 1 . . . . . 2 . . . 2 . Power 3 | . 2 . . . . . . 1 . . . . . Propulsion 3 | . . 1 . . . . . . . . . 2 . Utility 1 | . . . . . . . . 1 . . . . . Weapon . | . . . . . . . . . . . . . . Tool/Special . | . . . . . . . . . . . . . . Average Slot Usage (%) 80 | . 97 88 100 99 92 95 94 86 31 35 51 53 26 Core 8 | . 12 8 11 9 7 7 12 10 3 5 5 4 . Treads 5 | . 27 . . . . . . . . . . . . Hover 17 | . . 16 33 35 34 36 32 26 1 10 4 . . Flight 3 | . . 14 . . . . . . 2 . 17 18 6 Device 10 | . . 11 11 18 15 15 10 7 11 7 8 13 4 Storage 6 | . 13 4 11 9 7 7 6 5 . . . . . Processor 8 | . 12 11 11 9 11 15 13 12 . 5 5 4 4 Hackware 2 | . . . . . . . 5 10 2 5 5 5 6 Energy Gun 4 | . . 9 11 9 7 4 4 . 2 . . . . Ballistic Gun 5 | . 27 . . . . . . . . . . . . Launcher 3 | . . 9 11 9 7 7 1 2 . . . . . Peak Build Rating 94 | 6 9 24 22 24 30 30 51 49 51 54 63 94 84 Average Rating 30 | 6 8 17 22 23 29 28 42 42 27 39 57 72 41 On Entrance 29 | 6 6 8 22 22 24 30 25 47 1 29 54 53 84 Avg Prop Armor Cover (%) 15 | . 12 . . . . 9 . . 13 16 16 29 11 Naked Turns 32 | . . . . . . . . 13 19 . . . . Heaviest Build 40 | 12 12 16 19 21 21 21 33 32 22 12 12 40 34 Greatest Support 41 | 40 40 24 24 30 38 22 36 36 32 32 41 41 36 Greatest Overweight (x) 3 | . 3 1 . . . . . 1 1 . . 1 3 Average Overweight (x) . | . . . . . . . . . . . . . . Largest Inventory Capacity 10 | 8 8 8 10 10 10 10 10 10 5 5 5 5 5 Average Capacity 7 | 8 7 6 9 10 10 10 10 9 5 5 5 5 5 Most Carried 10 | 6 8 8 8 7 7 5 9 10 5 5 5 5 5 Average Carried 4 | 5 3 4 7 6 5 5 6 8 3 4 4 4 4 Final Capacity 10 | 8 5 8 10 10 10 10 10 5 5 5 5 5 5 Final Carried 9 | 2 4 6 8 7 5 5 9 5 4 5 4 5 3 Class Distribution -------------------- 74% | Mutant 10% | Scout 7% | Sprinter 3% | Hacker-Mutant Dominant Class ---------------- Mutant | -10/Materials Mutant | -9/Materials Mutant | -9/Mines Mutant | -8/Materials Mutant | -7/Factory Scout | -7/DSF Scout | -6/Factory Scout | -6/Extension Mutant | -5/Factory Mutant | -4/Factory Mutant | -4/DSF Sprinter | -3/Research Mutant | -3/Quarantine Resources | -11 -10 -9 -9 -8 -7 -7 -6 -6 -5 -4 -4 -3 -3 ----------- Run | Yrd Mat Mat Min Mat Fac DSF Fac Ext Fac Fac DSF Res Qua Matter Collected 1157 | 200 84 119 132 117 . 10 42 193 44 181 29 6 . Remotely . | . . . . . . . . . . . . . . Salvage Created 849 | . 274 89 . 45 . . 66 362 13 . . . . Parts 44 | . 21 9 . 3 . . 6 4 1 . . . . Haulers Intercepted . | . . . . . . . . . . . . . . Recyclers Shooed 1 | . . . . . . . . 1 . . . . . Parts Field Recycled . | . . . . . . . . . . . . . . Retrieved Matter . | . . . . . . . . . . . . . . Parts Self-Destructed . | . . . . . . . . . . . . . . Prevented . | . . . . . . . . . . . . . . Parts Restored . | . . . . . . . . . . . . . . Kills | -11 -10 -9 -9 -8 -7 -7 -6 -6 -5 -4 -4 -3 -3 ------- Run | Yrd Mat Mat Min Mat Fac DSF Fac Ext Fac Fac DSF Res Qua Combat Hostiles Destroyed 16 | . 5 5 . 1 . . . 4 1 . . . . Melee 2 | . . . . . . . . 2 . . . . . Guns 7 | . 5 1 . . . . . . 1 . . . . AOE 5 | . . 4 . 1 . . . . . . . . . Classes Destroyed 9 | . 3 2 . 1 . . 1 2 . . . . . Worker 1 | . . . . . . . . 1 . . . . . Builder 3 | . 1 . . . . . 2 . . . . . . Recycler 1 | . . . . . . . . 1 . . . . . Operator 1 | . . . . . . . 1 . . . . . . Watcher 1 | . 1 . . . . . . . . . . . . Swarmer 4 | . . 3 . . . . . . 1 . . . . Grunt 8 | . 5 . . . . . . 3 . . . . . Sentry 3 | . . 2 . . . . . 1 . . . . . Hunter 1 | . . . . 1 . . . . . . . . . Best Kill Streak 4 | . 2 4 . 1 . . 2 4 1 . . . . Combat Bots Only 4 | . 2 4 . 1 . . . 3 1 . . . . Max Kills in Single Turn 3 | . 1 3 . 1 . . 1 1 1 . . . . Gunslinging . | . . . . . . . . . . . . . . Exploded 3 | . . 3 . 1 . . . . . . . . . Melee 1 | . . . . . . . . 1 . . . . . Uniques/NPCs Destroyed . | . . . . . . . . . . . . . . Combat | -11 -10 -9 -9 -8 -7 -7 -6 -6 -5 -4 -4 -3 -3 -------- Run | Yrd Mat Mat Min Mat Fac DSF Fac Ext Fac Fac DSF Res Qua Hostile Shots Fired 622 | . 45 30 . 4 . 3 31 155 115 . 11 93 135 Missed 270 | . 14 13 . 1 . . 22 66 52 . 4 45 53 Hits 352 | . 31 17 . 3 . 3 9 89 63 . 7 48 82 Melee 5 | . . . . . . . . . 1 . 4 . . Projectile 347 | . 31 17 . 3 . 3 9 89 62 . 3 48 82 AOE 5 | . . . . . . . . . 4 . 1 . . Critical Strikes 17 | . 1 1 . . . . . . 4 . 3 3 5 Actively Blocked 1 | . . . . . . . . . . . 1 . . Part Disruptions 1 | . . . . . . . . . . . . 1 . Damage Taken 6753 | . 403 257 . 31 . 132 115 1280 1629 . 269 851 1786 Core 3179 | . 89 63 . . . . 39 778 878 . 29 294 1009 Absorbed by Shields 176 | . . . . . . . . . 41 . 6 129 . Redirected to Shielding 103 | . . . . . . . . . . . 96 7 . Core Remaining (%) 70 | 100 64 . 84 100 . 100 . 3 12 . 97 . . Volleys Fired 56 | . 28 17 . 1 . . . 6 3 . . . 1 Largest 2 | . 2 1 . 1 . . . 1 1 . . . 1 Hottest 94 | . 40 45 . 30 . . . 30 60 . . . 94 Shots Fired 84 | . 56 17 . 1 . . . 6 3 . . . 1 Gun 63 | . 56 4 . . . . . . 3 . . . . Cannon 1 | . . . . . . . . . . . . . 1 Launcher 20 | . . 13 . 1 . . . 6 . . . . . Special . | . . . . . . . . . . . . . . Kinetic 56 | . 56 . . . . . . . . . . . . Thermal . | . . . . . . . . . . . . . . Explosive 20 | . . 13 . 1 . . . 6 . . . . . Electromagnetic 8 | . . 4 . . . . . . 3 . . . 1 Robot Hit Streak 9 | . 9 8 . 4 . . . . 2 . . . . Robot Miss Streak 4 | . 4 2 . . . . . . 1 . . . 1 Penetration Max . | . . . . . . . . . . . . . . Secondary Targets 2 | . 2 . . . . . . . . . . . . Max Gunslinging Chain 1 | . 1 . . . . . . . . . . . . Shots Hit Robots 81 | . 42 8 . 1 . . 3 23 2 . . 1 1 Core Hits 38 | . 19 9 . 2 . . 2 3 2 . . . 1 Critical Kills 2 | . . . . . . . 1 1 . . . . . Critical Parts Destroyed 6 | . . . . . . . . 6 . . . . . Critical Strikes 8 | . . . . . . . 1 7 . . . . . Smash 8 | . . . . . . . 1 7 . . . . . Melee Attacks 45 | . . . . . . . 13 23 . . . 1 8 Impact 25 | . . . . . . . 13 12 . . . . . Slashing . | . . . . . . . . . . . . . . Piercing 8 | . . . . . . . . . . . . . 8 Sneak Attacks 16 | . . . . . . . 2 13 . . . 1 . Combat Hostiles . | . . . . . . . . . . . . . . Follow-up Attacks . | . . . . . . . . . . . . . . Damage Inflicted 1892 | . 334 293 . 79 . . 312 800 53 . . . 21 Guns 454 | . 334 74 . . . . . . 46 . . . . Cannons . | . . . . . . . . . . . . . . Explosions 340 | . . 219 . 79 . . . 42 . . . . . Melee 1091 | . . . . . . . 312 758 . . . . 21 Ramming 7 | . . . . . . . . . 7 . . . . Kinetic 334 | . 334 . . . . . . . . . . . . Thermal . | . . . . . . . . . . . . . . Explosive 340 | . . 219 . 79 . . . 42 . . . . . Electromagnetic 120 | . . 74 . . . . . . 46 . . . . Impact 1070 | . . . . . . . 312 758 . . . . . Slashing . | . . . . . . . . . . . . . . Piercing 21 | . . . . . . . . . . . . . 21 Highest Corruption 4 | . 3 . . . . . . . 3 . . 1 4 Average Corruption 2 | . 2 . . . . . . . 3 . . 1 3 Corruption Purged . | . . . . . . . . . . . . . . Corruption Blocked . | . . . . . . . . . . . . . . Effects 16 | . 9 . . . . . . . 1 . . 3 3 Message Errors 5 | . 3 . . . . . . . 1 . . . 1 Matter Fused 2 | . 1 . . . . . . . . . . . 1 Heat Flow Errors 3 | . 2 . . . . . . . . . . 1 . Energy Discharges 3 | . 2 . . . . . . . . . . . 1 Parts Fused 1 | . 1 . . . . . . . . . . . . Data Loss (minor) 2 | . . . . . . . . . . . . 2 . Overload Shots . | . . . . . . . . . . . . . . Overflow Damage 497 | . . . . . . . 110 387 . . . . . Projectiles . | . . . . . . . . . . . . . . Explosions 1 | . . . . . . . . 1 . . . . . Melee 496 | . . . . . . . 110 386 . . . . . Knockbacks 6 | . . . . . . . . 6 . . . . . Impact 6 | . . . . . . . . 6 . . . . . Kinetic . | . . . . . . . . . . . . . . Secondary . | . . . . . . . . . . . . . . Self-Inflicted Damage 85 | . . 41 . . . . . 41 3 . . . . Shots 3 | . . 1 . . . . . 2 . . . . . Rammed 2 | . . . . . . . . . 2 . . . . Targets Rammed 2 | . . . . . . . . . 2 . . . . Kicked . | . . . . . . . . . . . . . . Crushed . | . . . . . . . . . . . . . . Highest Temperature 337 | . 337 24 . . . . 7 11 16 . . 317 . Average Temperature 88 | . 75 9 . . . . 6 6 8 . . 146 . Received Heat Transfer 1109 | . 243 72 . 9 . . 24 294 363 . . 71 33 Effects 2 | . 2 . . . . . . . . . . . . Interference 1 | . 1 . . . . . . . . . . . . Short Circuit 1 | . 1 . . . . . . . . . . . . Siege Activations . | . . . . . . . . . . . . . . Martial Activations . | . . . . . . . . . . . . . . Shielding Activations . | . . . . . . . . . . . . . . Robots Disrupted . | . . . . . . . . . . . . . . Combat Hostiles . | . . . . . . . . . . . . . . Robots Corrupted 3 | . . . . . . . . 3 . . . . . Combat Hostiles 2 | . . . . . . . . 2 . . . . . Parts Fried 12 | . . . . . . . 2 10 . . . . . Impact Corruptions 12 | . . . . . . . 4 8 . . . . . Robots Melted . | . . . . . . . . . . . . . . Combat Hostiles . | . . . . . . . . . . . . . . Parts Melted . | . . . . . . . . . . . . . . Heat Transferred . | . . . . . . . . . . . . . . Parts Sabotaged . | . . . . . . . . . . . . . . Parts Stolen . | . . . . . . . . . . . . . . Parts Stripped . | . . . . . . . . . . . . . . Power Chain Reactions . | . . . . . . . . . . . . . . Alert | -11 -10 -9 -9 -8 -7 -7 -6 -6 -5 -4 -4 -3 -3 ------- Run | Yrd Mat Mat Min Mat Fac DSF Fac Ext Fac Fac DSF Res Qua Maximum Alert Level 1 | . . . . . . . . . 1 . . . . Low Security (%) 99 | 100 100 100 100 100 100 100 100 100 99 100 100 100 100 Level 1 . | . . . . . . . . . . . . . . Level 2 . | . . . . . . . . . . . . . . Level 3 . | . . . . . . . . . . . . . . Level 4 . | . . . . . . . . . . . . . . Level 5 . | . . . . . . . . . . . . . . High Security . | . . . . . . . . . . . . . . Max Security . | . . . . . . . . . . . . . . Peak Influence 207 | . 54 128 45 80 . 3 35 81 207 104 58 129 182 Initial 104 | . . . 45 . . 3 . 16 2 104 58 9 34 Average 19 | . 7 74 15 3 . 1 2 43 23 98 38 36 59 Influence Increases 1657 | . 132 228 . 80 5 . 70 317 320 . . 293 212 Destroy 0b10 Robot/C 440 | . 100 100 . 40 . . 20 160 20 . . . . Destroy 0b10 Robot/NC 35 | . 10 . . . . . 15 10 . . . . . Destroy Leader 92 | . 22 30 . 20 . . 10 10 . . . . . Allied During Kill 18 | . . . . 10 . . 5 3 . . . . . Successful Hack 103 | . . 12 . . 5 . 14 19 . . . 53 . Disable Machine 15 | . . 15 . . . . . . . . . . . Destroy Structure 99 | . . 71 . 10 . . 6 10 . . . . 2 Partial Spotted 75 | . . . . . . . . 30 . . . 45 . Lose Combat Pursuer 780 | . . . . . . . . 75 300 . . 195 210 Influence Decreases 1525 | . 132 110 118 80 . 5 35 345 113 130 66 249 142 Entered New Map 272 | . . . 73 . . 2 . 19 5 110 26 9 28 Time Decay 802 | . 132 90 45 40 . . 35 140 66 20 . 200 34 Lost Part 265 | . . 20 . . . 3 . 40 42 . 40 40 80 Lost Ally 186 | . . . . 40 . . . 146 . . . . . Squads Dispatched 19 | . 2 . . 4 . . 3 3 3 . 1 1 2 Investigation 9 | . 1 . . 2 . . 1 3 . . . . 2 Extermination 3 | . . . . . . . 1 . 1 . . 1 . Reinforcement 7 | . 1 . . 2 . . 1 . 2 . 1 . . Assault . | . . . . . . . . . . . . . . Garrison . | . . . . . . . . . . . . . . Intercept . | . . . . . . . . . . . . . . Searches Triggered . | . . . . . . . . . . . . . . Construction Impeded . | . . . . . . . . . . . . . . Haulers Reinforced . | . . . . . . . . . . . . . . Active Scanning Responses . | . . . . . . . . . . . . . . Cargo Convoy Interrupts . | . . . . . . . . . . . . . . Stealth | -11 -10 -9 -9 -8 -7 -7 -6 -6 -5 -4 -4 -3 -3 --------- Run | Yrd Mat Mat Min Mat Fac DSF Fac Ext Fac Fac DSF Res Qua Distress Signals 9 | . . 1 . 4 . . . 2 1 . . 1 . Communications Jammed . | . . . . . . . . . . . . . . Distress Signals . | . . . . . . . . . . . . . . Times Spotted 153 | . 14 9 . 2 . 3 22 22 34 . 3 18 26 Peak Tracking Total 17 | . 5 7 . 2 . 2 12 10 14 . 3 8 17 Tactical Retreats 27 | . . 3 . . . 1 5 5 6 . . 5 2 ECM-based Alert Blocks 31 | . . 4 . . . 1 22 4 . . . . . Traps | -11 -10 -9 -9 -8 -7 -7 -6 -6 -5 -4 -4 -3 -3 ------- Run | Yrd Mat Mat Min Mat Fac DSF Fac Ext Fac Fac DSF Res Qua Traps Triggered 7 | . 3 . . . . . 1 1 1 . 1 . . Indirectly . | . . . . . . . . . . . . . . Trap Hack Attempts . | . . . . . . . . . . . . . . Triggered . | . . . . . . . . . . . . . . Disarmed . | . . . . . . . . . . . . . . Reprogrammed . | . . . . . . . . . . . . . . Reused . | . . . . . . . . . . . . . . Traps Extracted . | . . . . . . . . . . . . . . Installed 3 | . . . 2 . . . . . . . 1 . . Triggered . | . . . . . . . . . . . . . . Most Traps Carried 2 | . . . 2 1 1 1 1 1 1 1 1 . . Machines | -11 -10 -9 -9 -8 -7 -7 -6 -6 -5 -4 -4 -3 -3 ---------- Run | Yrd Mat Mat Min Mat Fac DSF Fac Ext Fac Fac DSF Res Qua Machines Disabled 1 | . . 1 . . . . . . . . . . . Max in Single Turn 1 | . . 1 . . . . . . . . . . . Machines Repaired . | . . . . . . . . . . . . . . Machines Dismantled . | . . . . . . . . . . . . . . Machines Sabotaged . | . . . . . . . . . . . . . . Overloaded Fab Kills . | . . . . . . . . . . . . . . Hacking | -11 -10 -9 -9 -8 -7 -7 -6 -6 -5 -4 -4 -3 -3 --------- Run | Yrd Mat Mat Min Mat Fac DSF Fac Ext Fac Fac DSF Res Qua Machines Accessed 24 | . 5 1 . 2 1 . 4 4 1 1 . 3 2 Terminals 22 | . 5 1 . 2 1 . 3 4 1 1 . 3 1 Fabricators 1 | . . . . . . . 1 . . . . . . Repair Stations . | . . . . . . . . . . . . . . Recycling Units . | . . . . . . . . . . . . . . Scanalyzers . | . . . . . . . . . . . . . . Garrison Access 1 | . . . . . . . . . . . . . 1 Total Hacks 56 | . 16 4 . 5 2 . 6 10 1 3 . 4 5 Successful 26 | . 8 2 . . 1 . 4 5 1 1 . 4 . Failed 30 | . 8 2 . 5 1 . 2 5 . 2 . . 5 Catastrophic 6 | . . 1 . 2 . . 1 1 . . . . 1 Database Lockouts . | . . . . . . . . . . . . . . Manual 20 | . 9 1 . 5 . . 3 2 . . . . . Terminals 51 | . 16 4 . 5 2 . 4 10 1 3 . 4 2 Fabricators 2 | . . . . . . . 2 . . . . . . Repair Stations . | . . . . . . . . . . . . . . Recycling Units . | . . . . . . . . . . . . . . Scanalyzers . | . . . . . . . . . . . . . . Garrison Access 3 | . . . . . . . . . . . . . 3 Terminal Hacks 19 | . 4 1 . . 1 . 2 5 1 1 . 4 . Record 5 | . . . . . . . . 2 1 . . 2 . Open Door 2 | . . . . . . . . 2 . . . . . Open DSF 4 | . . . . . 1 . 1 . . 1 . 1 . Surveillance Status 1 | . . . . . . . . . . . . 1 . Recall Investigation 1 | . 1 . . . . . . . . . . . . Recall Extermination 1 | . . . . . . . 1 . . . . . . Registered Components 2 | . 1 1 . . . . . . . . . . . Zone Layout 3 | . 2 . . . . . . 1 . . . . . Fabricator Hacks 2 | . . . . . . . 2 . . . . . . Network Status 1 | . . . . . . . 1 . . . . . . Build 1 | . . . . . . . 1 . . . . . . Repair Station Hacks . | . . . . . . . . . . . . . . Recycling Unit Hacks . | . . . . . . . . . . . . . . Scanalyzer . | . . . . . . . . . . . . . . Garrison Access Hacks . | . . . . . . . . . . . . . . Unauthorized Hacks 5 | . 4 1 . . . . . . . . . . . Terminals 5 | . 4 1 . . . . . . . . . . . Track 1 | . 1 . . . . . . . . . . . . Botnet 4 | . 3 1 . . . . . . . . . . . Fabricators . | . . . . . . . . . . . . . . Repair Stations . | . . . . . . . . . . . . . . Recycling Units . | . . . . . . . . . . . . . . Scanalyzers . | . . . . . . . . . . . . . . Garrison Access . | . . . . . . . . . . . . . . Data Cores Recovered 1 | . . . . . . . 1 . . . . . . Used 1 | . . . . . . . 1 . . . . . . Hacking Detections 14 | . 3 1 . 2 . . 1 2 1 . . 2 2 Full Trace Events 6 | . . . . 1 . . 1 2 . . . . 2 Feedback Events . | . . . . . . . . . . . . . . Feedback Blocked . | . . . . . . . . . . . . . . Robot Schematics Acquired . | . . . . . . . . . . . . . . Robots Built 3 | . . . . . . . 3 . . . . . . Authchips . | . . . . . . . . . . . . . . Time 76 | . . . . . . . 76 . . . . . . Total Robot Build Rating 15 | . . . . . . . 15 . . . . . . Part Schematics Acquired . | . . . . . . . . . . . . . . Parts Built . | . . . . . . . . . . . . . . Authchips . | . . . . . . . . . . . . . . Time . | . . . . . . . . . . . . . . Total Part Build Rating . | . . . . . . . . . . . . . . Part Studies Acquired . | . . . . . . . . . . . . . . Parts Repaired . | . . . . . . . . . . . . . . Time . | . . . . . . . . . . . . . . Parts Recycled . | . . . . . . . . . . . . . . Recycled Matter . | . . . . . . . . . . . . . . Retrieved Matter . | . . . . . . . . . . . . . . Retrieved Components . | . . . . . . . . . . . . . . Parts Scanalyzed . | . . . . . . . . . . . . . . Part Schematics Acquired . | . . . . . . . . . . . . . . Parts Damaged . | . . . . . . . . . . . . . . Bothacking | -11 -10 -9 -9 -8 -7 -7 -6 -6 -5 -4 -4 -3 -3 ------------ Run | Yrd Mat Mat Min Mat Fac DSF Fac Ext Fac Fac DSF Res Qua Used RIF Installer . | . . . . . . . . . . . . . . Robots Hacked 1 | . . . . . . . . . . . . 1 . Non-combat 1 | . . . . . . . . . . . . 1 . Combat . | . . . . . . . . . . . . . . Robot Hacks Applied 1 | . . . . . . . . . . . . 1 . find_dsf 1 | . . . . . . . . . . . . 1 . Relay Couplers Released . | . . . . . . . . . . . . . . Fabnet Peak Effective % . | . . . . . . . . . . . . . . Robots Rewired 6 | . . . . . . . . 6 . . . . . Allies Hacked . | . . . . . . . . . . . . . . Hacks Repelled . | . . . . . . . . . . . . . . Allies | -11 -10 -9 -9 -8 -7 -7 -6 -6 -5 -4 -4 -3 -3 -------- Run | Yrd Mat Mat Min Mat Fac DSF Fac Ext Fac Fac DSF Res Qua Total Allies 13 | . . . 3 . . . 3 7 . . . . . Largest Group 4 | . . . 3 3 1 1 3 4 . . . . . Highest-Rated Group 100 | . . . 40 40 16 16 87 100 . . . . . Highest-Rated Ally 39 | . . . 16 16 16 16 29 39 . . . . . Total Orders 2 | . . . . 2 . . . . . . . . . ROAM 2 | . . . . 2 . . . . . . . . . Ally Attacks 72 | . . . . 17 . 4 14 37 . . . . . Total Damage 1215 | . . . . 150 . 57 245 763 . . . . . Kills 6 | . . . . 1 . . 1 4 . . . . . Allies Corrupted . | . . . . . . . . . . . . . . Allies Melted . | . . . . . . . . . . . . . . Intel | -11 -10 -9 -9 -8 -7 -7 -6 -6 -5 -4 -4 -3 -3 ------- Run | Yrd Mat Mat Min Mat Fac DSF Fac Ext Fac Fac DSF Res Qua Active Infowar (turns) 3791 | . 8 233 162 1547 15 39 358 320 500 . . 604 5 Optics 729 | . . . . . 12 39 358 320 . . . . . Sensors 2915 | . . . 136 1547 15 39 358 320 500 . . . . Terrain 597 | . . . . . . . . . . . . 592 5 Jamming 492 | . . . . . . . . . 131 . . 361 . ECM 2186 | . 8 233 26 1547 15 39 222 96 . . . . . Robot Analysis Total . | . . . . . . . . . . . . . . Derelict Logs Recovered 2 | . . . 2 . . . . . . . . . . Drone Launches . | . . . . . . . . . . . . . . Drone Recoveries . | . . . . . . . . . . . . . . Exploration | -11 -10 -9 -9 -8 -7 -7 -6 -6 -5 -4 -4 -3 -3 ------------- Run | Yrd Mat Mat Min Mat Fac DSF Fac Ext Fac Fac DSF Res Qua Turns Passed 5202 | 5 984 250 162 1547 15 39 358 333 680 41 43 608 137 Spaces Moved 4315 | 1 528 379 203 220 12 61 459 488 647 56 85 989 187 Core 169 | . 3 . . . . . . 27 68 . . 53 18 Treads 509 | 1 508 . . . . . . . . . . . . Legs 253 | . . . . . . . . . 253 . . . . Wheels . | . . . . . . . . . . . . . . Hover 1747 | . . 152 203 220 12 61 459 461 135 44 . . . Flight 1637 | . 17 227 . . . . . . 191 12 85 936 169 Fastest Speed 29 | 160 37 34 42 40 36 45 38 38 39 40 29 29 35 Average Speed 58 | 160 156 37 42 40 37 45 38 40 79 60 31 33 45 Slowest Speed 200 | 160 200 110 42 40 45 45 38 102 129 66 40 115 200 Overloaded Moves . | . . . . . . . . . . . . . . Propulsion Burnouts . | . . . . . . . . . . . . . . Robots Hopped 15 | . . 2 . . . . . . 2 . . 5 6 Potential Cave-ins 7 | . . 4 . . . . 3 . . . . . . Cave-ins Triggered . | . . . . . . . . . . . . . . Exploration Rate (%) 33 | 2 61 37 46 28 . 56 12 57 25 2 54 26 25 Regions Visited 13 Branch Regions 3 Pre-discovered Areas 1 | . . . 1 . . . . . . . . . . Known Exits Taken 6 | . . 1 1 1 1 . 1 . . 1 . . . Unknown Exits Taken 5 | 1 1 . . . . . . 1 1 . . 1 . Scrap Searched 2 | . . . 2 . . . . . . . . . . Spaces Dug 10 | . . . . . . . 9 . . . . . 1 Terrain Destroyed 183 | . . 107 . 10 . . 9 56 . . . . 1 Melee 10 | . . . . . . . 9 . . . . . 1 Projectile . | . . . . . . . . . . . . . . AOE 173 | . . 107 . 10 . . . 56 . . . . . Terrain Rammed . | . . . . . . . . . . . . . . Walls Destroyed . | . . . . . . . . . . . . . . Machines Disabled . | . . . . . . . . . . . . . . Actions | -11 -10 -9 -9 -8 -7 -7 -6 -6 -5 -4 -4 -3 -3 --------- Run | Yrd Mat Mat Min Mat Fac DSF Fac Ext Fac Fac DSF Res Qua Total 6833 | 7 643 470 280 1677 21 71 615 591 812 61 100 1269 216 Wait 2199 | . 65 44 67 1451 8 11 117 63 118 . . 240 15 Move 4275 | . 527 374 202 219 11 60 458 487 642 55 84 978 178 Hop 12 | . . 2 . . . . . . 2 . . 5 3 Pick Up 61 | . 7 13 4 2 . . 10 2 10 2 1 9 1 Fast Attach 25 | . . 1 . . . . . . 4 3 5 8 4 Attach 68 | 1 5 10 . 2 2 . 6 3 21 1 1 12 4 Detach 30 | 1 4 2 . . . . 2 1 10 . . 9 1 Swap 19 | 1 2 1 2 1 . . 6 4 . . 2 . . Drop 37 | 4 5 6 3 1 . . 3 2 . . 5 7 1 Fire 56 | . 28 17 . 1 . . . 6 3 . . . 1 Melee 45 | . . . . . . . 13 23 . . . 1 8 Ram 2 | . . . . . . . . . 2 . . . . Kick . | . . . . . . . . . . . . . . Crush . | . . . . . . . . . . . . . . Escape Stasis 1 | . . . . . . . . . . . 1 . . Rewire . | . . . . . . . . . . . . . . Trap 3 | . . . 2 . . . . . . . 1 . . Miscellaneous . | . . . . . . . . . . . . . . Route ------- -11/Scrapyard -10/Materials (discovered 2 exits: *Mat x2) -9/Materials -9/Mines -8/Materials -7/Factory -7/DSF -6/Factory -6/Extension -5/Factory -4/Factory -4/DSF -3/Research -3/Quarantine History --------- Turn | Location | Event 6 | -11/Scrapyard | Discovered new exit (range 0) 6 | -11/Scrapyard | Entered Materials 314 | -10/Materials | Build established: Mutant 317 | -10/Materials | Discovered new exit (range 5) 989 | -10/Materials | Discovered new exit (range 4) 990 | -10/Materials | Entered another Materials area 990 | -9/Materials | Evolved 2 slots: Propulsion x1, Utility x1 1058 | -9/Materials | Discovered new exit (range 10) 1235 | -9/Materials | Identified exit to Mines 1240 | -9/Materials | Entered Mines 1247 | -9/Mines | Learned Materials emergency access door positions 1250 | -9/Mines | Found a hidden stash of uninstalled traps 1282 | -9/Mines | Assisted by bots powering up and referring to "LRC-V3" 1314 | -9/Mines | Met a Derelict bent on vengeance 1357 | -9/Mines | Learned location of Zion (-7) 1381 | -9/Mines | Discovered new exit (range 10) 1385 | -9/Mines | Identified exit to Materials 1402 | -9/Mines | Entered Materials 1402 | -8/Materials | Accompanied by 3 allies 1402 | -8/Materials | Evolved 2 slots: Propulsion x1, Utility x1 2866 | -8/Materials | Met 7R-MNS 2932 | -8/Materials | Discovered new exit (range 8) 2949 | -8/Materials | Identified exit to Factory 2949 | -8/Materials | Entered Factory 2949 | -7/Factory | Accompanied by 1 ally 2949 | -7/Factory | Evolved 2 slots: Propulsion x1, Utility x1 2950 | -7/Factory | Caught up to 7R-MNS 2964 | -7/Factory | Identified exit to DSF 2964 | -7/Factory | Entered DSF 2964 | -7/DSF | Accompanied by 1 ally 2981 | -7/DSF | Discovered new exit (range 17) 3001 | -7/DSF | Additional patrols routed to DSF 3002 | -7/DSF | Identified exit to Factory 3003 | -7/DSF | Entered Factory 3003 | -6/Factory | Evolved 2 slots: Power x1, Utility x1 3303 | -6/Factory | Fabricated G-50 Soldier (x3) 3319 | -6/Factory | Discovered new exit (range 18) 3338 | -6/Factory | Identified exit to Extension 3361 | -6/Factory | Entered Extension 3361 | -6/Extension | Accompanied by 2 allies 3414 | -6/Extension | Spotted B-75 Beast 3478 | -6/Extension | Build established: Scout 3566 | -6/Extension | Lost 4 allies 3625 | -6/Extension | Rescued a captive Derelict 3678 | -6/Extension | Spotted B-75 Beast 3681 | -6/Extension | Released all parts (8) 3688 | -6/Extension | Core integrity fell below 50% 3690 | -6/Extension | Lost 4 allies 3694 | -6/Extension | Core integrity fell below 20% 3694 | -6/Extension | Discovered new exit (range 3) 3694 | -6/Extension | Entered Factory 3694 | -5/Factory | Evolved 2 slots: Propulsion x1, Utility x1 3712 | -5/Factory | Lost 5 parts (1p3n1w) 3988 | -5/Factory | Build established: Mutant 4259 | -5/Factory | Lost 6 parts (1p2n3u) 4268 | -5/Factory | Core integrity fell below 50% 4344 | -5/Factory | Core integrity fell below 20% 4372 | -5/Factory | Discovered new exit (range 4) 4374 | -5/Factory | Entered another Factory area 4374 | -4/Factory | Evolved 2 slots: Utility x2 4415 | -4/Factory | Identified exit to DSF 4415 | -4/Factory | Entered DSF 4445 | -4/DSF | Additional patrols routed to DSF 4454 | -4/DSF | Discovered new exit (range 15) 4458 | -4/DSF | Entered Research 4458 | -3/Research | Evolved 2 slots: Power x1, Utility x1 4489 | -3/Research | Lost 4 parts (1p2n1u) 4559 | -3/Research | Spotted B-86 Titan 4676 | -3/Research | Build established: Sprinter 4796 | -3/Research | Lost 3 parts (2n1u) 4801 | -3/Research | Spotted B-86 Titan 5054 | -3/Research | Spotted B-86 Titan 5056 | -3/Research | Discovered new exit (range 9) 5066 | -3/Research | Entered Quarantine 5151 | -3/Quarantine | Lost 9 parts (2p2n5u) 5163 | -3/Quarantine | Core integrity fell below 50% 5182 | -3/Quarantine | Core integrity fell below 20% 5203 | -3/Quarantine | Destroyed by S-43 Plague with Heavy Machine Gun Last Messages --------------- Investigation squad. 05120_ System Shield destroyed. 05122_ Connecting with Door Terminal... 05122_ ALERT: Suspicious activity at Terminal Q002. Dispatching Investigation squad. 05134_ Acquired Force Lance. 05141_ Penetrated by Slug. 05154_ U-05 Engineer builds a Wall. 05157_ Impulse Thruster destroyed. 05161_ S-43 Plague destroyed. 05168_ TWVTHONM1WLF R%KRU WBZ4EIO:G6UAC 05171_ Impulse Thruster Array destroyed. 05175_ Force Lance destroyed. 05183_ Acquired Com. HERF Cannon. 05193_ Com. HERF Cannon destroyed. 05197_ S-43 Plague destroyed. 05199_ Acquired Com. HERF Cannon. 05201_ Drone sends a signal. 05202_ Com. HERF Cannon destroyed. 05203_ System corrupted: Energy discharge (-13). Map ----- +----------------------------------------------------+ | #######??????????????????????????????????????????? | | ?????????????????????????????????????????????????? | | ?????????????????????????????????????????????????? | | ?????????????????????????????????????????????????? | | ?????????????????????????????????????????????????? | | ?????????????????????????????????????????????????? | | ?????????????????????????????????????????????????? | | ?????????????????????????????????????????????????? | | ?????????????????????????????????????????????????? | | ?????????????????????????????????????????????????? | | ???????????????????? ??????????????????????????? | | ???????????????????# ??????????????????????????? | | ???????????????????# ??????????????????????????? | | ???????????????????# ?????????????????????????? | | ???????????????????# ?????????????????????????? | | ???????????????????# ?????????????????????????? | | ???????????????????# ?????????????????????????? | | ???????????????????# #?????????????????????????? | | ???????????????????# ###########???????????????? | | ???????????????????# # = #???????????????? | | ???????????????????# # #???????????????? | | ???????????????????#u # #???????????????? | | ???????????????????# # """ #???????????????? | | ??????????????""" # #s]] """ #???????????????? | | ??????????????&"" + gs%] """ #???????????????? | | ?????????????""" # # @ #???????????????? | | ???????????????????# # #???????????????? | | ??????############## ############??????????????? | | ????? ????????????? | | ????? ????????????? | | ????? ????????????? | | ???????############/################?????????????? | | ????????????????# ! #?????????????????????????? | | ????????????????# #?????????????????????????? | | ????????????????#! """ #?????????????????????????? | | ????????????????# =""" #?????????????????????????? | | ????????????????#*%""" #?????????????????????????? | | ???????????????##== #?????????????????????????? | | ?????????###############?????????????????????????? | | ?????????# """"" #???????????????????????????? | | ?????????# ""T"" #???????????????????????????? | | ?????????# """ #???????????????????????????? | | ?????????# " " #???????????????????????????? | | ?????????# [ """ #???????????????????????????? | | ?????????# #???????????????????????????? | | ?????????# #???????????????????????????? | | ?????????######+######???????????????????????????? | | ####????????# #??????????????????????????????? | | ########## "" #??????????????????????????????? | | T" #??????????????????????????????? | +----------------------------------------------------+ Best States ------------- Heat Dissipation 46 Coolant Potential 120 Energy Generation 41 Energy Capacity 365 Matter Stores 300 Matter Capacity 300 Sight Range 18 Robot Scan Range 16 Terrain Scan Range 16 Terrain Scan Density 210 ECM Strength 1 Jamming Range 14 Additional Mass Support 6 Propulsion Shielding 66 Point Defense Rating 240 Phase Shifting 10 Evasion (%) 73 Targeting Accuracy 5 Recoil Reduction 2 Offensive Hacking 14 Defensive Hacking 10 Authchip Count 1 Item Schematics ----------------- None Robot Schematics ------------------ None Fabricated ------------ G-50 Soldier | x3 | -6/Factory | Preloaded Repaired ---------- Nothing Studied --------- None Alien Tech Used ----------------- None Achievements -------------- A New Friend My Command Is Your Wish Streaker Challenges ------------ None Game ------ Seed GlidesysHybridActivator Manual? 0 Play Time 00:58:59 Cumulative 22.1 hours Start 2026.08.14 @ 15:48:01 End 2026.08.14 @ 16:56:11 Sessions 1 Manual Loads 0 Difficulty Rogue Special Mode None Game No. 66 Rogue 59 Adventurer 7 Explorer 0 Win Type - Total 0 Types 0/0/0/0/0/0/0/0/0/0 Lore% 26 Gallery% 28 Achievement% 24 Wizard Run 0 Options --------- Layout 0 ASCII 0 Keyboard 0 Movement Mouse Keybinds 0 Fullscreen 1 Font 18/SmallcapsGlow Map View 38x25 Zoom Use 100% Tactical HUD 1 Map Filters NONE Filters NONE Steam 1 RUN: 65120130-80c1-4171-ad0a-2f9935678966